fUSD/lending_fUSD_20260614
["ID","MTS","AMOUNT","RATE_DAILY","PERIOD"]
[424995331,1781391032000,-151.0,0.00016378,2]
[424995328,1781391032000,-151.0,0.00016378,2]
[424995336,1781391032000,-151.0,0.00016379,2]
[424995326,1781391032000,-143.37093407,0.00016378,2]
[424995325,1781391032000,-7.62906593,0.00016378,2]
[424995310,1781391032000,-152.0,0.00016277,2]
[424995311,1781391032000,-151.0,0.00016277,2]
[424995312,1781391032000,-150.0,0.00016277,2]
[424995314,1781391032000,-151.0,0.00016277,2]
[424995315,1781391032000,-25.78849686,0.00016277,2]
[424995313,1781391032000,-151.0,0.00016277,2]
[424995324,1781391032000,-500.0,0.00016377,2]
[424995318,1781391032000,-153.0,0.00016277,2]
[424995317,1781391032000,-151.0,0.00016277,2]
[424995319,1781391032000,-151.0,0.00016277,2]
[424995316,1781391032000,-124.21150314,0.00016277,2]
[424995322,1781391032000,-152.0,0.00016377,2]
[424995342,1781391032000,-151.0,0.00016379,2]
[424995323,1781391032000,-446.3506239,0.00016377,2]
[424995320,1781391032000,-150.0,0.00016277,2]
[424995343,1781391032000,-151.0,0.00016379,2]
[424995321,1781391032000,-420.04980458,0.00016277,2]
[424995345,1781391032000,-151.0,0.00016379,2]
[424995365,1781391032000,-172.0,0.0002,2]
[424995366,1781391032000,-220.0,0.0002,2]
[424995368,1781391032000,-617.0,0.00020712,2]
[424995367,1781391032000,-513.0,0.00020385,4]
[424995371,1781391032000,-220.0,0.00021,2]
[424995375,1781391032000,-220.0,0.00022,2]
[424995364,1781391032000,-155.0,0.0002,2]
[424995370,1781391032000,-172.0,0.00021,2]
[424995374,1781391032000,-172.0,0.00022,2]
[424995372,1781391032000,-166.66,0.00021886,2]
[424995373,1781391032000,-150.0,0.00021918,2]
[424995377,1781391032000,-243.27099173,0.00022407,2]
[424995378,1781391032000,-243.27099171,0.00022407,2]
[424995344,1781391032000,-150.0,0.00016379,2]
[424995369,1781391032000,-159.0,0.00021,2]
[424995363,1781391032000,-2500.0,0.00018015,2]
[424995376,1781391032000,-166.66,0.00022347,30]
[424995357,1781391032000,-152.0,0.00018,2]
[424995362,1781391032000,-2500.0,0.00018015,2]
[424995347,1781391032000,-153.0,0.00016379,2]
[424995348,1781391032000,-151.0,0.00016379,2]
[424995350,1781391032000,-151.0,0.00016387,2]
[424995346,1781391032000,-151.0,0.00016379,2]
[424995351,1781391032000,-151.0,0.00016411,2]
[424995352,1781391032000,-150.0,0.00016508,2]
[424995349,1781391032000,-151.0,0.00016381,2]
[424995353,1781391032000,-150.0,0.00016901,2]
[424995355,1781391032000,-513.0,0.00018,2]
[424995356,1781391032000,-152.0,0.00018,2]
[424995359,1781391032000,-2500.0,0.00018015,2]
[424995360,1781391032000,-2500.0,0.00018015,2]
[424995354,1781391032000,-281.2101365,0.00017905,2]
[424995358,1781391032000,-218.34963013,0.00018014,2]
[424995361,1781391032000,-2500.0,0.00018015,2]
[424995394,1781391033000,-166.66,0.00022807,30]
[424995397,1781391033000,-150.0,0.00023014,2]
[424995399,1781391033000,-166.66,0.00023268,30]
[424995398,1781391033000,-5000.0,0.00023094,2]
[424995400,1781391033000,-166.66,0.00023729,30]
[424995404,1781391033000,-166.66,0.0002419,30]
[424995402,1781391033000,-220.0,0.00024,2]
[424995405,1781391033000,-150.0,0.00024439,2]
[424995401,1781391033000,-172.0,0.00024,2]
[424995395,1781391033000,-172.0,0.00023,2]
[424995406,1781391033000,-175.13,0.00024658,2]
[424995403,1781391033000,-150.0,0.00024164,2]
[424995388,1781391033000,-151.0,0.00022689,2]
[424995384,1781391033000,-151.0,0.00022689,2]
[424995390,1781391033000,-151.0,0.00022689,2]
[424995396,1781391033000,-220.0,0.00023,2]
[424995393,1781391033000,-457.21219825,0.00022769,6]
[424995391,1781391033000,-1211.63,0.00022711,2]
[424995389,1781391033000,-151.0,0.00022689,2]
[424995387,1781391033000,-151.0,0.00022689,2]
[424995383,1781391033000,-151.0,0.00022689,2]
[424995386,1781391033000,-151.0,0.00022689,2]
[424995381,1781391033000,-151.0,0.00022689,2]
[424995380,1781391033000,-151.0,0.00022689,2]
[424995382,1781391033000,-151.0,0.00022689,2]
[424995379,1781391033000,-571.01,0.00022454,2]
[424995407,1781391033000,-1000.0,0.00024658,2]
[424995392,1781391033000,-55.78780175,0.00022769,6]
[424995409,1781391033000,-152.97,0.00024658,2]
[424995385,1781391033000,-151.0,0.00022689,2]
[424995410,1781391033000,-153.01,0.00024658,2]
[424995408,1781391033000,-156.01674226,0.00024658,2]
[424995437,1781391033000,-1275.0,0.00027239,2]
[424995436,1781391033000,-383.0,0.00027239,2]
[424995433,1781391033000,-3506.31976399,0.00027239,2]
[424995435,1781391033000,-1359.0,0.00027239,2]
[424995434,1781391033000,-50.68023601,0.00027239,2]
[424995432,1781391033000,-62.00293274,0.00027111,7]
[424995430,1781391033000,-152.0,0.00027111,3]
[424995431,1781391033000,-237.99706726,0.00027111,7]
[424995429,1781391033000,-159.33971215,0.00027099,7]
[424995428,1781391033000,-200.77930677,0.00027099,7]
[424995426,1781391033000,-1254.41808677,0.00027094,10]
[424995423,1781391033000,-159.02,0.00026572,120]
[424995424,1781391033000,-150.0,0.00026641,2]
[424995438,1781391033000,-600.30234464,0.00027239,2]
[424995422,1781391033000,-200.0,0.00026482,2]
[424995415,1781391033000,-152.97,0.00025092,7]
[424995417,1781391033000,-513.0,0.00025154,8]
[424995427,1781391033000,-979.9223236,0.00027094,10]
[424995411,1781391033000,-399.0,0.0002485,2]
[424995416,1781391033000,-153.01,0.00025092,7]
[424995413,1781391033000,-188.0,0.00025,2]
[424995414,1781391033000,-236.0,0.00025,2]
[424995418,1781391033000,-150.0,0.00025373,2]
[424995420,1781391033000,-2282.0,0.00025753,2]
[424995419,1781391033000,-2279.0,0.00025753,2]
[424995421,1781391033000,-156.01674226,0.00026027,2]
[424995425,1781391033000,-2604.65958963,0.00027094,10]
[424995412,1781391033000,-212.15,0.00024974,2]
[424995442,1781391037000,-152.0,0.00016277,2]
[424995444,1781391037000,-419.0,0.00027239,2]
[424995443,1781391037000,-333.69765536,0.00027239,2]
[424995448,1781391037000,-1500.0,0.00027397,2]
[424995451,1781391037000,-374.46067128,0.00027397,10]
[424995445,1781391037000,-152.0,0.00027376,3]
[424995447,1781391037000,-166.55767459,0.00027397,2]
[424995450,1781391037000,-300.0,0.00027397,2]
[424995446,1781391037000,-189.0,0.00027379,2]
[424995452,1781391037000,-5436.85932872,0.00027397,10]
[424995453,1781391037000,-5559.42115719,0.00027397,10]
[424995454,1781391037000,-43.98884281,0.00027397,10]
[424995455,1781391037000,-1274.76935642,0.00027397,10]
[424995456,1781391037000,-3394.74064358,0.00027397,10]
[424995458,1781391037000,-239.42827414,0.0002753,2]
[424995457,1781391037000,-500.0,0.000275,7]
[424995449,1781391037000,-412.0,0.00027397,2]
[424995522,1781391039000,-175.84,0.0002755,30]
[424995520,1781391039000,-2227.0,0.0002753,2]
[424995526,1781391039000,-160.3,0.00027646,7]
[424995519,1781391039000,-2207.0,0.0002753,2]
[424995518,1781391039000,-1242.87314146,0.0002753,2]
[424995524,1781391039000,-160.3,0.0002755,2]
[424995523,1781391039000,-175.5,0.0002755,30]
[424995517,1781391039000,-774.6985844,0.0002753,2]
[424995525,1781391039000,-160.27,0.0002755,2]
[424995521,1781391039000,-513.0,0.00027538,10]
[424995528,1781391039000,-160.3,0.00027743,30]
[424995529,1781391039000,-160.3,0.0002784,2]
[424995527,1781391039000,-160.27,0.00027646,7]
[424995533,1781391039000,-500.0,0.00027901,15]
[424995535,1781391039000,-160.3,0.00027936,7]
[424995534,1781391039000,-500.0,0.00027901,15]
[424995532,1781391039000,-500.0,0.00027901,15]
[424995531,1781391039000,-500.0,0.00027901,15]
[424995538,1781391039000,-175.5,0.00028033,7]
[424995537,1781391039000,-160.3,0.00028033,30]
[424995530,1781391039000,-896.0,0.00027856,10]
[424995536,1781391039000,-150.0,0.00027973,2]
[424995569,1781391040000,-172.0,0.00029013,30]
[424995561,1781391040000,-578.20924308,0.00028567,2]
[424995564,1781391040000,-500.0,0.00028567,2]
[424995563,1781391040000,-500.0,0.00028567,2]
[424995565,1781391040000,-175.5,0.00028637,30]
[424995567,1781391040000,-155.0,0.00029013,30]
[424995566,1781391040000,-157.0,0.00029013,30]
[424995570,1781391040000,-157.0,0.00029013,30]
[424995574,1781391040000,-152.0,0.00029013,30]
[424995572,1781391040000,-155.0,0.00029013,30]
[424995568,1781391040000,-155.0,0.00029013,30]
[424995573,1781391040000,-151.0,0.00029013,30]
[424995562,1781391040000,-500.0,0.00028567,2]
[424995577,1781391040000,-156.0,0.00029013,30]
[424995576,1781391040000,-154.0,0.00029013,30]
[424995575,1781391040000,-220.0,0.00029013,30]
[424995578,1781391040000,-155.0,0.00029013,30]
[424995579,1781391040000,-156.0,0.00029013,30]
[424995571,1781391040000,-153.0,0.00029013,30]
[424995559,1781391040000,-290.39862941,0.00028567,2]
[424995554,1781391040000,-500.0,0.00028486,60]
[424995556,1781391040000,-4280.411,0.00028523,20]
[424995539,1781391040000,-2500.0,0.00028077,2]
[424995540,1781391040000,-160.3,0.0002813,2]
[424995550,1781391040000,-733.86440027,0.000284,2]
[424995549,1781391040000,-1702.896942,0.000284,2]
[424995541,1781391040000,-7258.0,0.00028177,10]
[424995581,1781391040000,-223.41562743,0.00029115,2]
[424995544,1781391040000,-401.55861355,0.00028382,7]
[424995543,1781391040000,-175.5,0.00028275,2]
[424995545,1781391040000,-318.6794243,0.00028382,7]
[424995542,1781391040000,-151.0,0.00028267,2]
[424995546,1781391040000,-500.0,0.00028399,120]
[424995548,1781391040000,-1702.896942,0.000284,2]
[424995547,1781391040000,-1702.89694202,0.000284,2]
[424995552,1781391040000,-733.86440026,0.000284,2]
[424995551,1781391040000,-733.86440026,0.000284,2]
[424995557,1781391040000,-238.3,0.00028523,20]
[424995555,1781391040000,-175.5,0.00028516,2]
[424995553,1781391040000,-193.88203619,0.000284,2]
[424995560,1781391040000,-151.0,0.00028567,2]
[424995558,1781391040000,-223.41562743,0.00028567,2]
[424995580,1781391040000,-236.0,0.0002909,2]
[424995622,1781391040000,-19260.9728059,0.0002995,2]
[424995582,1781391040000,-500.0,0.00029147,2]
[424995609,1781391040000,-14952.4573852,0.0002984,2]
[424995612,1781391040000,-1407.38,0.00029865,2]
[424995607,1781391040000,-637.3588486,0.00029808,7]
[424995611,1781391040000,-360.0,0.00029863,7]
[424995605,1781391040000,-803.11722709,0.00029808,7]
[424995608,1781391040000,-152.8578742,0.00029808,7]
[424995613,1781391040000,-200.0,0.00029886,2]
[424995610,1781391040000,-2010.37958289,0.0002985,2]
[424995615,1781391040000,-154.3,0.0002994,2]
[424995617,1781391040000,-6877.53194734,0.0002995,2]
[424995618,1781391040000,-654.75309404,0.0002995,2]
[424995619,1781391040000,-13561.89328736,0.0002995,2]
[424995620,1781391040000,-315.87755839,0.0002995,2]
[424995623,1781391040000,-66944.66954921,0.0002995,2]
[424995621,1781391040000,-91292.83549297,0.0002995,2]
[424995625,1781391040000,-1478.27957233,0.0002995,2]
[424995624,1781391040000,-52508.00322087,0.0002995,2]
[424995583,1781391040000,-1034.39226461,0.00029148,5]
[424995616,1781391040000,-500.0,0.00029949,2]
[424995606,1781391040000,-435.26972029,0.00029808,7]
[424995614,1781391040000,-513.0,0.00029923,13]
[424995601,1781391040000,-204.339036,0.00029807,7]
[424995584,1781391040000,-1111.2552354,0.00029148,5]
[424995586,1781391040000,-1008.13965284,0.00029148,5]
[424995585,1781391040000,-1013.78032243,0.00029148,5]
[424995588,1781391040000,-1143.23518459,0.00029148,5]
[424995589,1781391040000,-1122.24122483,0.00029148,5]
[424995587,1781391040000,-1041.68421284,0.00029148,5]
[424995590,1781391040000,-1102.71732555,0.00029148,5]
[424995591,1781391040000,-6368.78024326,0.00029226,2]
[424995604,1781391040000,-150.54916247,0.00029807,7]
[424995593,1781391040000,-217.63486015,0.00029238,7]
[424995592,1781391040000,-602.33792032,0.00029238,7]
[424995594,1781391040000,-478.01913645,0.00029238,7]
[424995598,1781391040000,-3083.13594735,0.00029532,10]
[424995597,1781391040000,-3185.8786834,0.00029532,10]
[424995599,1781391040000,-360.0,0.00029589,2]
[424995596,1781391040000,-3408.98536925,0.00029532,10]
[424995600,1781391040000,-223.41562743,0.00029663,2]
[424995602,1781391040000,-152.98031548,0.00029807,2]
[424995603,1781391040000,-164.35997535,0.00029807,7]
[424995595,1781391040000,-150.0,0.00029372,2]
[424995632,1781391043000,-722.76681161,0.0002995,10]
[424995631,1781391043000,-972.0418084,0.0002995,2]
[424995630,1781391043000,-8184.78606779,0.0002995,2]
[424995633,1781391043000,-98.23318839,0.0002995,10]
[424995635,1781391043000,-2716.87,0.0003,2]
[424995639,1781391043000,-157.0,0.00030013,30]
[424995636,1781391043000,-206.36658498,0.0003,2]
[424995637,1781391043000,-164.87,0.0003,7]
[424995638,1781391043000,-200.0,0.0003,10]
[424995634,1781391043000,-1500.0,0.0003,2]
[424995664,1781391044000,-500.0,0.00030129,2]
[424995663,1781391044000,-2012.25,0.00030129,120]
[424995666,1781391044000,-151.0,0.0003013,2]
[424995667,1781391044000,-500.0,0.0003013,60]
[424995674,1781391044000,-510.3390379,0.0003015,2]
[424995665,1781391044000,-226966.78917985,0.0003013,7]
[424995671,1781391044000,-184.01039822,0.00030137,40]
[424995673,1781391044000,-150.0,0.00030137,30]
[424995672,1781391044000,-155.1022,0.00030137,2]
[424995669,1781391044000,-247.3486601,0.00030137,7]
[424995661,1781391044000,-12500.0,0.00030125,2]
[424995668,1781391044000,-2110.0,0.0003013,2]
[424995675,1781391044000,-603.376278,0.00030192,120]
[424995677,1781391044000,-2103.08,0.000302,7]
[424995680,1781391044000,-350.0,0.00030239,30]
[424995683,1781391044000,-1359.0,0.00030239,2]
[424995682,1781391044000,-3557.0,0.00030239,2]
[424995686,1781391044000,-934.0,0.00030239,2]
[424995670,1781391044000,-494.69732021,0.00030137,7]
[424995660,1781391044000,-22500.0,0.00030125,2]
[424995656,1781391044000,-151.0,0.0001764,2]
[424995662,1781391044000,-18171.63,0.00030125,2]
[424995640,1781391044000,-155.0,0.00030013,30]
[424995642,1781391044000,-172.0,0.00030013,30]
[424995641,1781391044000,-155.0,0.00030013,30]
[424995644,1781391044000,-155.0,0.00030013,30]
[424995645,1781391044000,-151.0,0.00030013,30]
[424995652,1781391044000,-300.0,0.000301,10]
[424995646,1781391044000,-152.0,0.00030013,30]
[424995647,1781391044000,-220.0,0.00030013,30]
[424995643,1781391044000,-157.0,0.00030013,30]
[424995648,1781391044000,-154.0,0.00030013,30]
[424995649,1781391044000,-156.0,0.00030013,30]
[424995650,1781391044000,-155.0,0.00030013,30]
[424995653,1781391044000,-200.0,0.00030123,2]
[424995651,1781391044000,-156.0,0.00030013,30]
[424995655,1781391044000,-12188.96642398,0.00030125,2]
[424995654,1781391044000,-8496.47,0.00030125,2]
[424995657,1781391044000,-160.27,0.00027743,30]
[424995659,1781391044000,-10311.03357602,0.00030125,2]
[424995678,1781391044000,-223.41562743,0.00030211,2]
[424995658,1781391044000,-160.27,0.0002784,2]
[424995684,1781391044000,-383.0,0.00030239,2]
[424995691,1781391044000,-438.19650333,0.00030249,10]
[424995679,1781391044000,-151.0,0.00030239,2]
[424995703,1781391044000,-1051.13042874,0.00030344,2]
[424995710,1781391044000,-2010.37958281,0.00030397,2]
[424995714,1781391044000,-732.60673339,0.00030444,2]
[424995713,1781391044000,-200.0,0.00030424,2]
[424995712,1781391044000,-4227.74,0.000304,7]
[424995716,1781391044000,-2107.95,0.000305,2]
[424995715,1781391044000,-150.0,0.00030479,30]
[424995711,1781391044000,-120880.19395717,0.000304,6]
[424995719,1781391044000,-535.260145,0.0003053,120]
[424995717,1781391044000,-2500.0,0.000305,2]
[424995720,1781391044000,-250.0,0.00030589,120]
[424995676,1781391044000,-1540.90873324,0.00030196,7]
[424995722,1781391044000,-196.0,0.00030589,120]
[424995723,1781391044000,-523.7262019,0.00030595,2]
[424995721,1781391044000,-372.0,0.00030589,120]
[424995724,1781391044000,-1779.35,0.0003063,2]
[424995727,1781391044000,-1079.95,0.00030713,7]
[424995726,1781391044000,-1176.32,0.00030713,7]
[424995725,1781391044000,-553.40027768,0.00030694,2]
[424995705,1781391044000,-22500.0,0.00030375,2]
[424995709,1781391044000,-553.40027768,0.00030385,2]
[424995718,1781391044000,-2007.32,0.000305,2]
[424995700,1781391044000,-12500.0,0.0003025,2]
[424995707,1781391044000,-11959.93,0.00030375,2]
[424995685,1781391044000,-1275.0,0.00030239,2]
[424995693,1781391044000,-500.0,0.00030249,2]
[424995688,1781391044000,-749.96278933,0.00030241,2]
[424995695,1781391044000,-22500.0,0.0003025,2]
[424995689,1781391044000,-300.0,0.00030249,10]
[424995690,1781391044000,-300.0,0.00030249,10]
[424995687,1781391044000,-419.0,0.00030239,2]
[424995694,1781391044000,-24753.24,0.0003025,2]
[424995696,1781391044000,-2500.0,0.0003025,2]
[424995692,1781391044000,-300.0,0.00030249,10]
[424995697,1781391044000,-22500.0,0.0003025,2]
[424995704,1781391044000,-749.96278933,0.00030353,2]
[424995702,1781391044000,-718.97127306,0.00030297,2]
[424995701,1781391044000,-588.15,0.0003025,2]
[424995706,1781391044000,-22500.0,0.00030375,2]
[424995698,1781391044000,-2499.99,0.0003025,2]
[424995699,1781391044000,-16921.21,0.0003025,2]
[424995681,1781391044000,-3000.0,0.00030239,3]
[424995708,1781391044000,-796.69856075,0.00030378,7]
[424995739,1781391045000,-236.0,0.00030801,2]
[424995736,1781391045000,-2500.0,0.0003075,2]
[424995735,1781391045000,-732.60673339,0.00030734,2]
[424995734,1781391045000,-749.96278933,0.00030733,2]
[424995730,1781391045000,-151.0,0.00030713,7]
[424995733,1781391045000,-151.0,0.00030728,7]
[424995729,1781391045000,-151.0,0.00030713,7]
[424995731,1781391045000,-151.0,0.00030713,7]
[424995732,1781391045000,-200.0,0.00030728,2]
[424995737,1781391045000,-223.41562743,0.00030759,2]
[424995728,1781391045000,-683.49,0.00030713,7]
[424995740,1781391045000,-150.0,0.00030841,2]
[424995747,1781391045000,-4227.74,0.000309,7]
[424995745,1781391045000,-151.0,0.00030887,7]
[424995746,1781391045000,-151.0,0.00030887,7]
[424995741,1781391045000,-1066.92675047,0.00030841,120]
[424995744,1781391045000,-12097.0,0.00030887,10]
[424995743,1781391045000,-500.0,0.00030886,2]
[424995742,1781391045000,-588.612588,0.00030867,120]
[424995748,1781391045000,-749.96278933,0.00030909,2]
[424995750,1781391045000,-2012.25,0.00030951,120]
[424995749,1781391045000,-2010.37958281,0.00030944,2]
[424995751,1781391045000,-6500.893077,0.00030997,3]
[424995752,1781391045000,-43346.79862382,0.00031,3]
[424995738,1781391045000,-2103.08,0.000308,7]
[424995756,1781391046000,-152.98,0.00025092,7]
[424995755,1781391046000,-152.98,0.00024658,2]
[424995754,1781391046000,-505.99997,0.00018,2]
[424995757,1781391046000,-152.98,0.00025526,30]
[424995759,1781391046000,-152.98,0.00026394,7]
[424995760,1781391046000,-1274.80003013,0.00027239,2]
[424995758,1781391046000,-152.98,0.0002596,2]
[424995762,1781391046000,-857.0,0.00027239,2]
[424995761,1781391046000,-151.0,0.0001764,2]
[424995768,1781391531000,250.0,0.00014,2]
[424995771,1781392028000,-300.0,0.0001637,2]
[424995770,1781392028000,-300.0,0.00016185,2]
[424995769,1781392028000,-300.0,0.00016,2]
[424995774,1781392028000,-55.98743902,0.00016375,2]
[424995773,1781392028000,-151.0,0.00016375,2]
[424995772,1781392028000,-151.0,0.00016375,2]
[424995785,1781392231000,-152.0,0.00016375,2]
[424995794,1781392231000,-500.0,0.00016375,2]
[424995793,1781392231000,-500.0,0.00016375,2]
[424995792,1781392231000,-500.0,0.00016375,2]
[424995790,1781392231000,-150.0,0.00016375,2]
[424995791,1781392231000,-151.0,0.00016375,2]
[424995789,1781392231000,-151.0,0.00016375,2]
[424995786,1781392231000,-152.0,0.00016375,2]
[424995781,1781392231000,-53.76411278,0.00016375,2]
[424995788,1781392231000,-151.0,0.00016375,2]
[424995783,1781392231000,-151.0,0.00016375,2]
[424995784,1781392231000,-151.0,0.00016375,2]
[424995782,1781392231000,-152.0,0.00016375,2]
[424995796,1781392231000,-437.66769765,0.00016375,2]
[424995780,1781392231000,-98.23588722,0.00016375,2]
[424995779,1781392231000,-151.0,0.00016375,2]
[424995777,1781392231000,-96.01256098,0.00016375,2]
[424995787,1781392231000,-151.0,0.00016375,2]
[424995795,1781392231000,-500.0,0.00016375,2]
[424995778,1781392231000,-151.0,0.00016375,2]
[424995800,1781392231000,-151.0,0.00016375,2]
[424995797,1781392231000,-151.0,0.00016375,2]
[424995817,1781392231000,-3182.0,0.000173,2]
[424995815,1781392231000,-152.0,0.00016376,2]
[424995816,1781392231000,-151.0,0.00016376,2]
[424995814,1781392231000,-152.0,0.00016376,2]
[424995813,1781392231000,-150.0,0.00016376,2]
[424995812,1781392231000,-152.0,0.00016376,2]
[424995811,1781392231000,-150.0,0.00016376,2]
[424995809,1781392231000,-150.0,0.00016376,2]
[424995810,1781392231000,-151.0,0.00016376,2]
[424995804,1781392231000,-151.0,0.00016376,2]
[424995798,1781392231000,-151.0,0.00016375,2]
[424995808,1781392231000,-150.0,0.00016376,2]
[424995799,1781392231000,-151.0,0.00016375,2]
[424995802,1781392231000,-151.0,0.00016375,2]
[424995801,1781392231000,-151.0,0.00016375,2]
[424995805,1781392231000,-151.0,0.00016376,2]
[424995806,1781392231000,-151.0,0.00016376,2]
[424995807,1781392231000,-151.0,0.00016376,2]
[424995803,1781392231000,-151.0,0.00016376,2]
[424995867,1781392232000,-210.0,0.00022,2]
[424995859,1781392232000,-469.1298,0.00021655,2]
[424995869,1781392232000,-176.49,0.00022302,2]
[424995863,1781392232000,-150.0,0.00021918,2]
[424995871,1781392232000,-150.0,0.0002233,2]
[424995861,1781392232000,-870.97057598,0.00021818,2]
[424995865,1781392232000,-188.0,0.00022,2]
[424995877,1781392232000,-182.60040562,0.00022407,2]
[424995873,1781392232000,-182.60040564,0.00022407,2]
[424995875,1781392232000,-182.60040562,0.00022407,2]
[424995885,1781392232000,-151.0,0.000225,2]
[424995879,1781392232000,-197.6612541,0.00022407,2]
[424995882,1781392232000,-151.0,0.000225,2]
[424995881,1781392232000,-151.0,0.000225,2]
[424995883,1781392232000,-151.0,0.000225,2]
[424995889,1781392232000,-151.0,0.000225,2]
[424995884,1781392232000,-151.0,0.000225,2]
[424995888,1781392232000,-151.0,0.000225,2]
[424995890,1781392232000,-151.0,0.000225,2]
[424995857,1781392232000,-1085.58,0.00021273,2]
[424995886,1781392232000,-151.0,0.000225,2]
[424995880,1781392232000,-197.66125407,0.00022407,2]
[424995855,1781392232000,-578.04,0.00021273,2]
[424995847,1781392232000,-210.0,0.0002,2]
[424995851,1781392232000,-210.0,0.00021,2]
[424995887,1781392232000,-151.0,0.000225,2]
[424995819,1781392232000,-152.8447411,0.00017567,2]
[424995820,1781392232000,-1500.0,0.00017568,2]
[424995821,1781392232000,-300.0,0.000176,2]
[424995818,1781392232000,-163.67,0.000173,2]
[424995825,1781392232000,-2500.0,0.000176,2]
[424995822,1781392232000,-2500.0,0.000176,2]
[424995823,1781392232000,-2500.0,0.000176,2]
[424995826,1781392232000,-2500.0,0.000176,2]
[424995824,1781392232000,-2500.0,0.000176,2]
[424995853,1781392232000,-2142.58,0.00021273,2]
[424995827,1781392232000,-151.0,0.0001764,2]
[424995830,1781392232000,-350.0,0.00018,2]
[424995842,1781392232000,-600.0,0.0002,2]
[424995844,1781392232000,-400.0,0.0002,2]
[424995850,1781392232000,-188.0,0.00021,2]
[424995846,1781392232000,-188.0,0.0002,2]
[424995831,1781392232000,-1555.5,0.00018116,2]
[424995833,1781392232000,-1613.0535,0.00018664,2]
[424995835,1781392232000,-1672.7364795,0.00019212,2]
[424995838,1781392232000,-64.51732927,0.0001976,2]
[424995840,1781392232000,-1090.04551276,0.0001976,2]
[424995828,1781392232000,-999.99,0.0001764,2]
[424995892,1781392232000,-340.43,0.00022516,2]
[424995914,1781392232000,-1000.0,0.00024658,2]
[424995893,1781392232000,-166.66,0.00022706,30]
[424995920,1781392232000,-216.0,0.00025,2]
[424995921,1781392232000,-166.66,0.00025096,30]
[424995924,1781392232000,-212.37287802,0.00025786,2]
[424995927,1781392232000,-1085.58,0.00025786,2]
[424995926,1781392232000,-578.04,0.00025786,2]
[424995891,1781392232000,-151.0,0.000225,2]
[424995925,1781392232000,-1930.20712198,0.00025786,2]
[424995922,1781392232000,-150.0,0.00025373,2]
[424995928,1781392232000,-200.0,0.00026069,2]
[424995929,1781392232000,-153.87,0.00026087,2]
[424995919,1781392232000,-192.0,0.00025,2]
[424995931,1781392232000,-183.12,0.00026105,7]
[424995933,1781392232000,-151.0,0.00026296,2]
[424995936,1781392232000,-940.40849882,0.00026379,2]
[424995938,1781392232000,-150.0,0.00026641,2]
[424995934,1781392232000,-403.0,0.00026368,2]
[424995935,1781392232000,-2703.59150118,0.00026379,2]
[424995932,1781392232000,-870.97057595,0.00026179,2]
[424995937,1781392232000,-934.0,0.00026379,2]
[424995939,1781392232000,-1993.38480779,0.00027092,10]
[424995941,1781392232000,-53.38480779,0.00027245,2]
[424995940,1781392232000,-425.61519221,0.00027092,10]
[424995930,1781392232000,-174.69,0.00026105,7]
[424995918,1781392232000,-3779.63076745,0.00025,7]
[424995923,1781392232000,-824.0,0.00025479,10]
[424995916,1781392232000,-183.12,0.00024658,2]